[Event "*** Titled Tuesday 3|2 Blitz"]
[Site "Chess.com"]
[Date "2016.01.05"]
[Round "7"]
[White "Alliswell998"]
[Black "AUSSIE_PINOY"]
[Result "1/2-1/2"]
[WhiteElo "2068"]
[BlackElo "2311"]
[TimeControl "180+2"]
[EndTime "18:29:10 PST"]
[Termination "Game drawn by repetition"]

1. e4 {[%clk 0:03:01.9]} 1... c5 {[%clk 0:03:00.9]} 2. Nc3 {[%clk 0:03:01.7]}
2... a6 {[%clk 0:03:01.9]} 3. Nf3 {[%clk 0:03:01.9]} 3... e6 {[%clk 0:03:02.9]}
4. d4 {[%clk 0:03:03.3]} 4... cxd4 {[%clk 0:03:03.9]} 5. Nxd4 {[%clk 0:03:05.2]}
5... Qc7 {[%clk 0:03:05]} 6. Be3 {[%clk 0:03:05.3]} 6... b5 {[%clk 0:03:05.6]}
7. Bd3 {[%clk 0:03:04.4]} 7... Bb7 {[%clk 0:03:06.5]} 8. O-O {[%clk 0:03:04.2]}
8... Nf6 {[%clk 0:03:07.4]} 9. f4 {[%clk 0:03:01.6]} 9... h5 {[%clk 0:03:08.4]}
10. Qe2 {[%clk 0:02:55.8]} 10... Ng4 {[%clk 0:03:05.4]} 11. Kh1 {[%clk
0:02:46.5]} 11... Nxe3 {[%clk 0:03:05.8]} 12. Qxe3 {[%clk 0:02:48.4]} 12... Bc5
{[%clk 0:03:06.1]} 13. Nce2 {[%clk 0:02:46.5]} 13... Nc6 {[%clk 0:02:58]} 14. c3
{[%clk 0:02:45.6]} 14... Ne7 {[%clk 0:02:53.1]} 15. Qg3 {[%clk 0:02:43.6]} 15...
g6 {[%clk 0:02:49.5]} 16. Qg5 {[%clk 0:02:43.3]} 16... h4 {[%clk 0:02:43]} 17.
h3 {[%clk 0:02:40.8]} 17... Rh5 {[%clk 0:02:41.5]} 18. Qg4 {[%clk 0:02:39.2]}
18... f5 {[%clk 0:02:23.8]} 19. exf5 {[%clk 0:02:39.7]} 19... exf5 {[%clk
0:02:25]} 20. Nxf5 {[%clk 0:02:37.4]} 20... Rxf5 {[%clk 0:02:24.5]} 21. Bxf5
{[%clk 0:02:35.1]} 21... gxf5 {[%clk 0:02:23.8]} 22. Qh5+ {[%clk 0:02:36.1]}
22... Kf8 {[%clk 0:02:13.5]} 23. Nd4 {[%clk 0:02:30]} 23... Bxd4 {[%clk
0:02:10.9]} 24. cxd4 {[%clk 0:02:31.1]} 24... Qc6 {[%clk 0:02:12.2]} 25. Rf2
{[%clk 0:02:28.1]} 25... Qg6 {[%clk 0:01:59.3]} 26. Qxh4 {[%clk 0:02:25.1]}
26... Nd5 {[%clk 0:01:58.5]} 27. Re1 {[%clk 0:02:16.9]} 27... Nf6 {[%clk
0:01:54.4]} 28. Re5 {[%clk 0:02:05.9]} 28... Kf7 {[%clk 0:01:06.2]} 29. Qg5
{[%clk 0:01:49]} 29... Qxg5 {[%clk 0:00:46.6]} 30. fxg5 {[%clk 0:01:47.7]} 30...
Ne4 {[%clk 0:00:47.8]} 31. Rfxf5+ {[%clk 0:01:47.7]} 31... Kg6 {[%clk 0:00:49]}
32. Rf4 {[%clk 0:01:41.1]} 32... Rc8 {[%clk 0:00:49.3]} 33. Rfxe4 {[%clk
0:01:32.8]} 33... Bxe4 {[%clk 0:00:49.6]} 34. Rxe4 {[%clk 0:01:34.7]} 34... Kxg5
{[%clk 0:00:50.6]} 35. Re2 {[%clk 0:01:31.1]} 35... Kf4 {[%clk 0:00:49.7]} 36.
Kh2 {[%clk 0:01:30.2]} 36... Rg8 {[%clk 0:00:50]} 37. a3 {[%clk 0:01:24.7]}
37... Rg7 {[%clk 0:00:45.1]} 38. d5 {[%clk 0:01:24.2]} 38... Rg5 {[%clk
0:00:41.6]} 39. d6 {[%clk 0:01:20.1]} 39... Rg6 {[%clk 0:00:41.7]} 40. Rd2
{[%clk 0:01:21.3]} 40... Ke5 {[%clk 0:00:42.2]} 41. h4 {[%clk 0:01:21.4]} 41...
Ke4 {[%clk 0:00:36.6]} 42. Kh3 {[%clk 0:01:20.8]} 42... Ke3 {[%clk 0:00:37.8]}
43. Rd5 {[%clk 0:01:20.9]} 43... Kf2 {[%clk 0:00:37.4]} 44. g4 {[%clk
0:01:20.9]} 44... Re6 {[%clk 0:00:37.7]} 45. Rf5+ {[%clk 0:01:20.2]} 45... Ke3
{[%clk 0:00:35]} 46. h5 {[%clk 0:01:19.3]} 46... Rxd6 {[%clk 0:00:35.7]} 47. g5
{[%clk 0:01:20.1]} 47... Rd1 {[%clk 0:00:34.3]} 48. g6 {[%clk 0:01:17.4]} 48...
Rh1+ {[%clk 0:00:32.1]} 49. Kg4 {[%clk 0:01:18.3]} 49... Ke4 {[%clk 0:00:33.4]}
50. Rf2 {[%clk 0:01:15.5]} 50... Rg1+ {[%clk 0:00:29.4]} 51. Kh4 {[%clk
0:01:16.3]} 51... d5 {[%clk 0:00:28.8]} 52. Rf7 {[%clk 0:01:05]} 52... d4 {[%clk
0:00:28.2]} 53. g7 {[%clk 0:00:35.9]} 53... d3 {[%clk 0:00:29.3]} 54. Re7+
{[%clk 0:00:34]} 54... Kf4 {[%clk 0:00:28.4]} 55. Rf7+ {[%clk 0:00:34.5]} 55...
Ke4 {[%clk 0:00:29.5]} 56. Re7+ {[%clk 0:00:23.1]} 56... Kf4 {[%clk 0:00:30.4]}
57. Rf7+ {[%clk 0:00:24.5]} 57... Ke4 {[%clk 0:00:24.6]} 58. Re7+ {[%clk
0:00:24.7]} 58... Kf4 {[%clk 0:00:25.2]} 59. Rf7+ {[%clk 0:00:25.9]} 1/2-1/2

[Event "*** Titled Tuesday 3|2 Blitz"]
[Site "Chess.com"]
[Date "2016.01.05"]
[Round "7"]
[White "spirals5"]
[Black "mateueasily"]
[Result "1-0"]
[WhiteElo "2228"]
[BlackElo "2315"]
[TimeControl "180+2"]
[EndTime "18:29:11 PST"]
[Termination "spirals5 won by resignation"]

1. e4 {[%clk 0:03:01.9]} 1... c5 {[%clk 0:02:57.8]} 2. Nc3 {[%clk 0:03:02.3]}
2... Nc6 {[%clk 0:02:58]} 3. g3 {[%clk 0:03:03.1]} 3... g6 {[%clk 0:02:58.4]} 4.
Bg2 {[%clk 0:03:03.9]} 4... Bg7 {[%clk 0:02:59.1]} 5. f4 {[%clk 0:03:04.6]} 5...
d6 {[%clk 0:02:59.8]} 6. d3 {[%clk 0:03:05]} 6... e6 {[%clk 0:03:01.2]} 7. Nf3
{[%clk 0:03:05.9]} 7... Nge7 {[%clk 0:03:02.7]} 8. O-O {[%clk 0:03:05.2]} 8...
O-O {[%clk 0:03:04.6]} 9. Be3 {[%clk 0:03:06.3]} 9... b6 {[%clk 0:03:05.8]} 10.
Rb1 {[%clk 0:03:05]} 10... Qd7 {[%clk 0:03:06.4]} 11. d4 {[%clk 0:03:05.4]}
11... Ba6 {[%clk 0:03:05.1]} 12. Re1 {[%clk 0:03:05.7]} 12... Rfd8 {[%clk
0:03:05.4]} 13. a3 {[%clk 0:02:54.8]} 13... Na5 {[%clk 0:03:05.3]} 14. dxc5
{[%clk 0:02:46.9]} 14... dxc5 {[%clk 0:03:04.1]} 15. Qxd7 {[%clk 0:02:46.8]}
15... Rxd7 {[%clk 0:03:04]} 16. e5 {[%clk 0:02:47.3]} 16... Nc4 {[%clk
0:03:01.1]} 17. Bf2 {[%clk 0:02:47.8]} 17... Rad8 {[%clk 0:03:00.5]} 18. a4
{[%clk 0:02:43.1]} 18... h5 {[%clk 0:02:54.2]} 19. Bf1 {[%clk 0:02:39.9]} 19...
Nf5 {[%clk 0:02:47]} 20. Bxc4 {[%clk 0:02:31.5]} 20... Bxc4 {[%clk 0:02:47.5]}
21. Rbd1 {[%clk 0:02:28]} 21... Kf8 {[%clk 0:02:43.6]} 22. b3 {[%clk 0:02:26.6]}
22... Ba6 {[%clk 0:02:43.4]} 23. Rxd7 {[%clk 0:02:19]} 23... Rxd7 {[%clk
0:02:43.3]} 24. Ne4 {[%clk 0:02:19.9]} 24... Bb7 {[%clk 0:02:36]} 25. h3 {[%clk
0:01:30.1]} 25... Ne7 {[%clk 0:02:23]} 26. Nfg5 {[%clk 0:01:27.1]} 26... Nf5
{[%clk 0:02:08.8]} 27. Kh2 {[%clk 0:01:09.7]} 27... Ke7 {[%clk 0:02:05.1]} 28.
g4 {[%clk 0:01:08.6]} 28... hxg4 {[%clk 0:02:05.2]} 29. hxg4 {[%clk 0:01:09.1]}
29... Nd4 {[%clk 0:02:07.1]} 30. Bxd4 {[%clk 0:01:07.8]} 30... Rxd4 {[%clk
0:02:06.7]} 31. Kg3 {[%clk 0:00:52]} 31... Bh6 {[%clk 0:01:58.7]} 32. Nd6 {[%clk
0:00:43.3]} 32... Bxg5 {[%clk 0:01:48]} 33. fxg5 {[%clk 0:00:43.7]} 33... Ba6
{[%clk 0:01:49.3]} 34. Re3 {[%clk 0:00:39.3]} 34... Rd1 {[%clk 0:01:21.7]} 35.
c4 {[%clk 0:00:32.8]} 35... Rf1 {[%clk 0:01:10.4]} 36. Rf3 {[%clk 0:00:33]}
36... Rxf3+ {[%clk 0:00:55.7]} 37. Kxf3 {[%clk 0:00:33.7]} 37... Kf8 {[%clk
0:00:57.2]} 38. Kf4 {[%clk 0:00:33.4]} 38... Ke7 {[%clk 0:00:57.5]} 39. Ke4
{[%clk 0:00:32.9]} 39... Kf8 {[%clk 0:00:58.8]} 40. Kd3 {[%clk 0:00:32.6]} 40...
Ke7 {[%clk 0:01:00.1]} 41. Kc3 {[%clk 0:00:33.4]} 41... Kf8 {[%clk 0:01:01.2]}
42. b4 {[%clk 0:00:32.6]} 42... cxb4+ {[%clk 0:00:52.2]} 43. Kxb4 {[%clk
0:00:33.1]} 43... Ke7 {[%clk 0:00:53.7]} 44. a5 {[%clk 0:00:29]} 44... Kd7
{[%clk 0:00:46.4]} 45. axb6 {[%clk 0:00:28.3]} 45... axb6 {[%clk 0:00:47.4]} 46.
Nxf7 {[%clk 0:00:28.8]} 46... Ke7 {[%clk 0:00:48.6]} 47. Nh8 {[%clk 0:00:27.3]}
47... Bb7 {[%clk 0:00:49]} 48. Nxg6+ {[%clk 0:00:27.8]} 48... Kf7 {[%clk
0:00:50.3]} 49. Nf4 {[%clk 0:00:28.8]} 49... Bf3 {[%clk 0:00:51.2]} 50. Kb5
{[%clk 0:00:29.4]} 50... Bxg4 {[%clk 0:00:51.4]} 51. Kxb6 {[%clk 0:00:30.6]} 1-0

[Event "*** Titled Tuesday 3|2 Blitz"]
[Site "Chess.com"]
[Date "2016.01.05"]
[Round "7"]
[White "saraswathii"]
[Black "JusticeBot"]
[Result "0-1"]
[WhiteElo "1928"]
[BlackElo "2463"]
[TimeControl "180+2"]
[EndTime "18:29:38 PST"]
[Termination "JusticeBot won by resignation"]

1. e4 {[%clk 0:03:01.9]} 1... e5 {[%clk 0:03:01.6]} 2. d3 {[%clk 0:03:02.6]}
2... d5 {[%clk 0:03:00.8]} 3. exd5 {[%clk 0:03:02]} 3... Nf6 {[%clk 0:03:01.8]}
4. Nf3 {[%clk 0:02:51.2]} 4... Qxd5 {[%clk 0:02:56.4]} 5. Be2 {[%clk 0:02:47.4]}
5... Nc6 {[%clk 0:02:45.3]} 6. O-O {[%clk 0:02:46.5]} 6... Bg4 {[%clk
0:02:45.2]} 7. h3 {[%clk 0:02:45.5]} 7... Bh5 {[%clk 0:02:45.5]} 8. Nc3 {[%clk
0:02:45]} 8... Qd7 {[%clk 0:02:46.3]} 9. Nxe5 {[%clk 0:02:40.4]} 9... Nxe5
{[%clk 0:02:34.8]} 10. Bxh5 {[%clk 0:02:38.6]} 10... O-O-O {[%clk 0:02:34.5]}
11. Bf4 {[%clk 0:02:31.7]} 11... Ng6 {[%clk 0:02:34.6]} 12. Bg5 {[%clk
0:02:28.2]} 12... Kb8 {[%clk 0:02:32.1]} 13. Ne4 {[%clk 0:02:03.2]} 13... Be7
{[%clk 0:02:20.8]} 14. Re1 {[%clk 0:01:37.3]} 14... Rhg8 {[%clk 0:02:02]} 15.
Bxg6 {[%clk 0:01:21.1]} 15... hxg6 {[%clk 0:01:56.8]} 16. Nxf6 {[%clk
0:01:21.3]} 16... gxf6 {[%clk 0:01:56.6]} 17. Bf4 {[%clk 0:01:17.3]} 17... g5
{[%clk 0:01:57.8]} 18. Bg3 {[%clk 0:01:16.5]} 18... f5 {[%clk 0:01:56.7]} 19.
Be5 {[%clk 0:01:16]} 19... g4 {[%clk 0:01:55.8]} 20. hxg4 {[%clk 0:01:08.8]}
20... Rxg4 {[%clk 0:01:57.4]} 21. Qe2 {[%clk 0:01:09.1]} 21... Bc5 {[%clk
0:01:45.1]} 22. d4 {[%clk 0:01:04.6]} 22... Qc6 {[%clk 0:01:28.8]} 23. f3 {[%clk
0:00:51.9]} 23... Bxd4+ {[%clk 0:01:24.7]} 24. Bxd4 {[%clk 0:00:53.3]} 24...
Rgxd4 {[%clk 0:01:26]} 25. Rad1 {[%clk 0:00:49.3]} 25... Qb6 {[%clk 0:01:10.8]}
26. Rxd4 {[%clk 0:00:48.3]} 26... Qxd4+ {[%clk 0:01:12.7]} 27. Qe3 {[%clk
0:00:43.7]} 27... Qxb2 {[%clk 0:01:13.4]} 28. Qe7 {[%clk 0:00:34.4]} 28... Qd4+
{[%clk 0:01:14]} 29. Kf1 {[%clk 0:00:34.3]} 29... f6 {[%clk 0:01:00.8]} 30. c3
{[%clk 0:00:25.9]} 30... Qd3+ {[%clk 0:00:53.5]} 31. Kf2 {[%clk 0:00:25.3]}
31... a5 {[%clk 0:00:33.9]} 32. Qxf6 {[%clk 0:00:23.9]} 32... Rg8 {[%clk
0:00:34.4]} 33. Qd4 {[%clk 0:00:12.3]} 33... Qc2+ {[%clk 0:00:34.9]} 34. Re2
{[%clk 0:00:04.4]} 34... Rxg2+ {[%clk 0:00:36.6]} 35. Kxg2 {[%clk 0:00:06.3]}
35... Qxe2+ {[%clk 0:00:38.3]} 36. Kg3 {[%clk 0:00:07.7]} 36... Qxa2 {[%clk
0:00:32.5]} 37. Qd8+ {[%clk 0:00:07.7]} 37... Ka7 {[%clk 0:00:33.7]} 38. Qxc7
{[%clk 0:00:08.5]} 38... Qd5 {[%clk 0:00:25.1]} 39. Kf4 {[%clk 0:00:06.1]} 39...
a4 {[%clk 0:00:23.9]} 40. c4 {[%clk 0:00:02.5]} 40... Qd1 {[%clk 0:00:17.5]} 41.
Qa5+ {[%clk 0:00:02.5]} 41... Kb8 {[%clk 0:00:18.7]} 42. Qe5+ {[%clk 0:00:03.9]}
42... Kc8 {[%clk 0:00:19.2]} 43. Qxf5+ {[%clk 0:00:04.1]} 43... Kc7 {[%clk
0:00:20.5]} 44. Qc5+ {[%clk 0:00:04.6]} 44... Kb8 {[%clk 0:00:19.7]} 45. Qf8+
{[%clk 0:00:05.4]} 45... Ka7 {[%clk 0:00:20.9]} 46. Qc5+ {[%clk 0:00:07]} 46...
b6 {[%clk 0:00:15.2]} 47. Qc7+ {[%clk 0:00:06]} 47... Ka6 {[%clk 0:00:16.6]} 48.
Qc8+ {[%clk 0:00:07]} 48... Ka7 {[%clk 0:00:17.6]} 49. Qc7+ {[%clk 0:00:07.6]}
49... Ka6 {[%clk 0:00:19.3]} 50. Qc8+ {[%clk 0:00:08.9]} 50... Ka5 {[%clk
0:00:20.8]} 51. Qc6 {[%clk 0:00:10]} 51... Qb3 {[%clk 0:00:15.3]} 52. Qd5+
{[%clk 0:00:11.1]} 52... Kb4 {[%clk 0:00:15.6]} 53. Qb5+ {[%clk 0:00:11.3]}
53... Kc3 {[%clk 0:00:16.7]} 54. Qe5+ {[%clk 0:00:12]} 54... Kxc4 {[%clk
0:00:18]} 55. Qe6+ {[%clk 0:00:13.5]} 55... Kc3 {[%clk 0:00:19.1]} 56. Qe5+
{[%clk 0:00:14.1]} 56... Kc2 {[%clk 0:00:20]} 57. Qe2+ {[%clk 0:00:15.1]} 57...
Kb1 {[%clk 0:00:21.2]} 58. Qe1+ {[%clk 0:00:16.3]} 58... Ka2 {[%clk 0:00:22.4]}
59. Qe2+ {[%clk 0:00:17.1]} 59... Ka3 {[%clk 0:00:23.4]} 60. Qe7+ {[%clk
0:00:14.7]} 60... Qb4+ {[%clk 0:00:24.2]} 61. Qxb4+ {[%clk 0:00:16.2]} 61...
Kxb4 {[%clk 0:00:26.1]} 62. Ke3 {[%clk 0:00:17.8]} 62... a3 {[%clk 0:00:28]} 0-1

[Event "*** Titled Tuesday 3|2 Blitz"]
[Site "Chess.com"]
[Date "2016.01.05"]
[Round "7"]
[White "tigra"]
[Black "AlexanderL"]
[Result "1/2-1/2"]
[WhiteElo "2301"]
[BlackElo "2595"]
[TimeControl "180+2"]
[EndTime "18:30:36 PST"]
[Termination "Game drawn - insufficient material"]

1. e4 {[%clk 0:03:01.9]} 1... e6 {[%clk 0:03:00.8]} 2. d4 {[%clk 0:03:01.8]}
2... d5 {[%clk 0:03:01.9]} 3. Nc3 {[%clk 0:03:03.2]} 3... Nf6 {[%clk 0:03:01.6]}
4. Bg5 {[%clk 0:03:02.8]} 4... dxe4 {[%clk 0:03:01.6]} 5. Nxe4 {[%clk
0:03:03.7]} 5... Nbd7 {[%clk 0:03:03.3]} 6. Nf3 {[%clk 0:03:03.6]} 6... Be7
{[%clk 0:03:03]} 7. Nxf6+ {[%clk 0:03:03.5]} 7... Bxf6 {[%clk 0:03:04.9]} 8. Be3
{[%clk 0:03:02.7]} 8... O-O {[%clk 0:02:59.3]} 9. c3 {[%clk 0:03:00]} 9... b6
{[%clk 0:02:59.4]} 10. Bd3 {[%clk 0:02:57.3]} 10... Bb7 {[%clk 0:02:59.1]} 11.
Qe2 {[%clk 0:02:57.4]} 11... c5 {[%clk 0:02:57.5]} 12. Rd1 {[%clk 0:02:50.3]}
12... Qc7 {[%clk 0:02:52.3]} 13. Ba6 {[%clk 0:02:43.4]} 13... cxd4 {[%clk
0:02:47.3]} 14. Bxd4 {[%clk 0:02:42.3]} 14... Bxd4 {[%clk 0:02:43.9]} 15. Rxd4
{[%clk 0:02:40.5]} 15... Bxa6 {[%clk 0:02:44.3]} 16. Qxa6 {[%clk 0:02:40.9]}
16... Nc5 {[%clk 0:02:45.4]} 17. Qe2 {[%clk 0:02:41.1]} 17... Rad8 {[%clk
0:02:43.8]} 18. O-O {[%clk 0:02:38.8]} 18... Rxd4 {[%clk 0:02:44.6]} 19. Nxd4
{[%clk 0:02:39.7]} 19... Rd8 {[%clk 0:02:42.3]} 20. Rd1 {[%clk 0:02:37.3]} 20...
h6 {[%clk 0:02:23.4]} 21. g3 {[%clk 0:02:35.2]} 21... Qb7 {[%clk 0:02:20.9]} 22.
Nb5 {[%clk 0:02:28.5]} 22... Rxd1+ {[%clk 0:02:20.9]} 23. Qxd1 {[%clk
0:02:29.5]} 23... a6 {[%clk 0:02:20]} 24. Nd6 {[%clk 0:02:28.5]} 24... Qd7
{[%clk 0:02:13.2]} 25. Qd4 {[%clk 0:02:24.6]} 25... Na4 {[%clk 0:02:01.7]} 26.
c4 {[%clk 0:02:25.2]} 26... a5 {[%clk 0:01:30.4]} 27. b3 {[%clk 0:02:23.5]}
27... Nc5 {[%clk 0:01:31.4]} 28. f3 {[%clk 0:02:04.9]} 28... Qd8 {[%clk
0:01:08.7]} 29. Nf5 {[%clk 0:01:54.6]} 29... Qxd4+ {[%clk 0:01:09.2]} 30. Nxd4
{[%clk 0:01:55.7]} 30... Nd3 {[%clk 0:01:02.4]} 31. Nb5 {[%clk 0:01:56.2]} 31...
Kf8 {[%clk 0:00:59.5]} 32. Kf1 {[%clk 0:01:53.9]} 32... Ke7 {[%clk 0:01:00.6]}
33. Nc3 {[%clk 0:01:48.4]} 33... Kd6 {[%clk 0:00:59.7]} 34. Ke2 {[%clk
0:01:49.2]} 34... Nb4 {[%clk 0:00:52.9]} 35. Ke3 {[%clk 0:01:39.5]} 35... g5
{[%clk 0:00:46.6]} 36. Kd2 {[%clk 0:01:38.9]} 36... Nc6 {[%clk 0:00:45.8]} 37.
Ne4+ {[%clk 0:01:33.1]} 37... Ke5 {[%clk 0:00:42.9]} 38. Ke3 {[%clk 0:01:26.3]}
38... Nb4 {[%clk 0:00:42]} 39. f4+ {[%clk 0:01:20.5]} 39... gxf4+ {[%clk
0:00:41.5]} 40. gxf4+ {[%clk 0:01:21.7]} 40... Kf5 {[%clk 0:00:43.4]} 41. Nd6+
{[%clk 0:01:23.1]} 41... Kg6 {[%clk 0:00:44.7]} 42. a4 {[%clk 0:01:22.6]} 42...
Na6 {[%clk 0:00:35.1]} 43. Nc8 {[%clk 0:01:22.5]} 43... Nc5 {[%clk 0:00:36.1]}
44. Nxb6 {[%clk 0:01:23.2]} 44... Nxb3 {[%clk 0:00:37.1]} 45. Nd7 {[%clk
0:01:23.9]} 45... f6 {[%clk 0:00:38]} 46. c5 {[%clk 0:01:20.2]} 46... Kf7 {[%clk
0:00:39.1]} 47. c6 {[%clk 0:01:20.9]} 47... Ke7 {[%clk 0:00:40]} 48. Nxf6 {[%clk
0:01:21.4]} 48... Kd6 {[%clk 0:00:37]} 49. h4 {[%clk 0:01:14.2]} 49... Nc5
{[%clk 0:00:29.4]} 50. Ng4 {[%clk 0:01:07.2]} 50... h5 {[%clk 0:00:26]} 51. Nf6
{[%clk 0:01:08.1]} 51... Nxa4 {[%clk 0:00:26.9]} 52. Nxh5 {[%clk 0:01:08.4]}
52... Nb6 {[%clk 0:00:23.3]} 53. Nf6 {[%clk 0:01:09.2]} 53... Nc8 {[%clk
0:00:12.5]} 54. Kd4 {[%clk 0:00:54.8]} 54... Ne7 {[%clk 0:00:12.4]} 55. Ne4+
{[%clk 0:00:53.8]} 55... Kxc6 {[%clk 0:00:12.2]} 56. h5 {[%clk 0:00:55]} 56...
Nf5+ {[%clk 0:00:07.6]} 57. Ke5 {[%clk 0:00:55.6]} 57... Kd7 {[%clk 0:00:08.8]}
58. Nc5+ {[%clk 0:00:55.9]} 58... Ke7 {[%clk 0:00:10.2]} 59. Nxe6 {[%clk
0:00:53.6]} 59... Ne3 {[%clk 0:00:03.5]} 60. f5 {[%clk 0:00:46.4]} 60... Ng4+
{[%clk 0:00:04.3]} 61. Kf4 {[%clk 0:00:47]} 61... Nf6 {[%clk 0:00:05.7]} 62. Ke5
{[%clk 0:00:16.5]} 62... Nxh5 {[%clk 0:00:05.9]} 63. Nc5 {[%clk 0:00:16.9]}
63... Nf6 {[%clk 0:00:06.4]} 64. Kd4 {[%clk 0:00:17.3]} 64... Ne8 {[%clk
0:00:05.5]} 65. Kc4 {[%clk 0:00:16.9]} 65... Nd6+ {[%clk 0:00:06.7]} 66. Kd5
{[%clk 0:00:18]} 66... Nxf5 {[%clk 0:00:06.7]} 67. Na4 {[%clk 0:00:18.4]} 67...
Nd6 {[%clk 0:00:06.6]} 68. Kc5 {[%clk 0:00:19.4]} 68... Ke6 {[%clk 0:00:07]} 69.
Kb6 {[%clk 0:00:20.1]} 69... Nc4+ {[%clk 0:00:08.3]} 70. Kb5 {[%clk 0:00:20.8]}
70... Kd5 {[%clk 0:00:09.7]} 71. Nb6+ {[%clk 0:00:22]} 71... Nxb6 {[%clk
0:00:08.3]} 72. Kxa5 {[%clk 0:00:23.5]} 1/2-1/2

[Event "*** Titled Tuesday 3|2 Blitz"]
[Site "Chess.com"]
[Date "2016.01.05"]
[Round "7"]
[White "MinhGTrAn"]
[Black "Aygehovit1992"]
[Result "1-0"]
[WhiteElo "2547"]
[BlackElo "2383"]
[TimeControl "180+2"]
[EndTime "18:30:54 PST"]
[Termination "MinhGTrAn won by resignation"]

1. d4 {[%clk 0:03:01.9]} 1... d6 {[%clk 0:03:01.8]} 2. Bf4 {[%clk 0:03:02.3]}
2... g6 {[%clk 0:03:02.7]} 3. e3 {[%clk 0:03:03.7]} 3... Bg7 {[%clk 0:03:04.4]}
4. Nf3 {[%clk 0:03:05.3]} 4... Nd7 {[%clk 0:03:06]} 5. h3 {[%clk 0:03:06.8]}
5... c6 {[%clk 0:03:06.2]} 6. Bh2 {[%clk 0:03:06.5]} 6... Ngf6 {[%clk
0:03:07.2]} 7. Be2 {[%clk 0:03:07.7]} 7... O-O {[%clk 0:03:08.7]} 8. O-O {[%clk
0:03:09.2]} 8... a5 {[%clk 0:03:10.2]} 9. c4 {[%clk 0:03:10.6]} 9... Ne4 {[%clk
0:03:07]} 10. Nbd2 {[%clk 0:03:06.6]} 10... f5 {[%clk 0:03:08]} 11. Qc2 {[%clk
0:02:49.9]} 11... Ndf6 {[%clk 0:03:08.3]} 12. Bd3 {[%clk 0:02:50.1]} 12... Nxd2
{[%clk 0:03:07.2]} 13. Nxd2 {[%clk 0:02:52]} 13... Qe8 {[%clk 0:03:06.8]} 14. c5
{[%clk 0:02:47.9]} 14... d5 {[%clk 0:02:30.4]} 15. Rfb1 {[%clk 0:02:42.1]} 15...
Ne4 {[%clk 0:02:31.2]} 16. Nf3 {[%clk 0:02:43.4]} 16... h6 {[%clk 0:02:30.8]}
17. Ne5 {[%clk 0:02:40.9]} 17... e6 {[%clk 0:02:14.7]} 18. a3 {[%clk 0:02:26.2]}
18... a4 {[%clk 0:02:14]} 19. Qd1 {[%clk 0:02:13.8]} 19... g5 {[%clk 0:02:14.1]}
20. f3 {[%clk 0:02:07.2]} 20... Nf6 {[%clk 0:02:14.6]} 21. Bc2 {[%clk
0:02:01.4]} 21... Nd7 {[%clk 0:02:14.8]} 22. f4 {[%clk 0:01:14.1]} 22... Nxe5
{[%clk 0:02:13.6]} 23. dxe5 {[%clk 0:01:14.5]} 23... Qe7 {[%clk 0:02:11.8]} 24.
Qd4 {[%clk 0:01:15.5]} 24... Ra5 {[%clk 0:02:10.3]} 25. Bxa4 {[%clk 0:01:08.3]}
25... Rxc5 {[%clk 0:02:10.4]} 26. b4 {[%clk 0:00:59.3]} 26... Rc4 {[%clk
0:02:10.4]} 27. Qd2 {[%clk 0:00:53.9]} 27... gxf4 {[%clk 0:01:30.5]} 28. Bxf4
{[%clk 0:00:54.4]} 28... Qc7 {[%clk 0:01:16]} 29. Bb3 {[%clk 0:00:54.7]} 29...
Re4 {[%clk 0:01:14.7]} 30. Bc2 {[%clk 0:00:55.9]} 30... Rxe5 {[%clk 0:01:14.1]}
31. Re1 {[%clk 0:00:53.3]} 31... Qe7 {[%clk 0:01:06.3]} 32. Rac1 {[%clk
0:00:45]} 32... Re4 {[%clk 0:01:04.1]} 33. Bxe4 {[%clk 0:00:45.4]} 33... fxe4
{[%clk 0:01:04.7]} 34. Rf1 {[%clk 0:00:23.1]} 34... e5 {[%clk 0:01:05.7]} 35.
Bg3 {[%clk 0:00:24.1]} 35... Bf5 {[%clk 0:01:07.1]} 36. b5 {[%clk 0:00:24.8]}
36... Bd7 {[%clk 0:00:51.9]} 37. a4 {[%clk 0:00:25.3]} 37... d4 {[%clk
0:00:47.7]} 38. Qc2 {[%clk 0:00:11.5]} 38... Rxf1+ {[%clk 0:00:47.7]} 39. Rxf1
{[%clk 0:00:11.4]} 39... Qg5 {[%clk 0:00:22.9]} 40. Bf2 {[%clk 0:00:04.1]} 40...
Bxh3 {[%clk 0:00:20.6]} 41. Be1 {[%clk 0:00:02.6]} 41... dxe3 {[%clk 0:00:16.9]}
42. Kh2 {[%clk 0:00:02.9]} 42... Bf5 {[%clk 0:00:14.3]} 43. Qc4+ {[%clk
0:00:04.2]} 43... Kh7 {[%clk 0:00:14.8]} 44. Bg3 {[%clk 0:00:05.8]} 44... Qh5+
{[%clk 0:00:12.4]} 45. Kg1 {[%clk 0:00:07.2]} 45... Qg5 {[%clk 0:00:10.6]} 46.
Kh2 {[%clk 0:00:08.8]} 46... Bg6 {[%clk 0:00:10.8]} 47. bxc6 {[%clk 0:00:09.4]}
47... bxc6 {[%clk 0:00:11.5]} 48. Qxc6 {[%clk 0:00:10.1]} 48... e2 {[%clk
0:00:12.6]} 49. Re1 {[%clk 0:00:11.1]} 49... Qh5+ {[%clk 0:00:13.4]} 50. Kg1
{[%clk 0:00:12]} 50... Qg5 {[%clk 0:00:14.5]} 51. Kh2 {[%clk 0:00:10.6]} 51...
h5 {[%clk 0:00:11.9]} 52. Rxe2 {[%clk 0:00:07.1]} 52... h4 {[%clk 0:00:13.3]}
53. Bf2 {[%clk 0:00:08.4]} 53... Qf4+ {[%clk 0:00:14.5]} 54. Kg1 {[%clk
0:00:09.4]} 54... Qg4 {[%clk 0:00:14.4]} 55. Re3 {[%clk 0:00:08.3]} 55... Qd1+
{[%clk 0:00:09.3]} 56. Re1 {[%clk 0:00:09.5]} 56... Qg4 {[%clk 0:00:10.2]} 57.
Qc3 {[%clk 0:00:10.9]} 57... Bf5 {[%clk 0:00:07.7]} 58. Qh3 {[%clk 0:00:09]}
58... Qxh3 {[%clk 0:00:05.4]} 59. gxh3 {[%clk 0:00:10.9]} 59... Bxh3 {[%clk
0:00:06.5]} 60. a5 {[%clk 0:00:12.3]} 60... Bc8 {[%clk 0:00:06.8]} 61. Rxe4
{[%clk 0:00:10.6]} 61... Kg6 {[%clk 0:00:06.6]} 62. Rc4 {[%clk 0:00:10]} 62...
Bb7 {[%clk 0:00:06.7]} 63. a6 {[%clk 0:00:10.1]} 63... Bf3 {[%clk 0:00:07.8]}
64. a7 {[%clk 0:00:07.1]} 64... Kf5 {[%clk 0:00:09]} 65. Rc7 {[%clk 0:00:06.5]}
65... Bf6 {[%clk 0:00:10.5]} 66. Rc8 {[%clk 0:00:05.1]} 66... h3 {[%clk
0:00:09.7]} 67. Rf8 {[%clk 0:00:05.5]} 67... h2+ {[%clk 0:00:11.6]} 68. Kxh2
{[%clk 0:00:06.7]} 68... Ke6 {[%clk 0:00:08.8]} 69. Bh4 {[%clk 0:00:07.8]} 69...
Bxh4 {[%clk 0:00:05.7]} 70. Rxf3 {[%clk 0:00:09.7]} 70... e4 {[%clk 0:00:06.5]}
71. Rb3 {[%clk 0:00:08.1]} 71... Bf2 {[%clk 0:00:05.8]} 72. a8=Q {[%clk
0:00:08.6]} 1-0